[Event "Titled Tuesday Blitz February 22 Late 2022"]
[White "Saraci, Nderim"]
[Black "Hasangatin, Ramil"]
[WhiteFideId "6351921"]
[BlackFideId "4122160"]
[WhiteElo "2573"]
[BlackElo "2375"]
[Result "1-0"]
[Round "08"]
[TimeControl "180+1"]
[Date "2022.02.22"]
[WhiteClock "0:00:13"]
[BlackClock "0:00:02"]

1. d4 {[%clk 0:02:41]}  Nf6 {[%clk 0:02:59]} 2. c4 {[%clk 0:02:41]}  d6 {[%clk 0:02:59]} 3. Nf3 {[%clk 0:02:40]}  g6 {[%clk 0:02:59]} 4. g3 {[%clk 0:02:40]}  Bg7 {[%clk 0:02:58]} 5. Bg2 {[%clk 0:02:40]}  O-O {[%clk 0:02:59]} 6. O-O {[%clk 0:02:41]}  c6 {[%clk 0:02:58]} 7. Nc3 {[%clk 0:02:42]}  Bf5 {[%clk 0:02:58]} 8. Re1 {[%clk 0:02:42]}  Ne4 {[%clk 0:02:58]} 9. Nxe4 {[%clk 0:02:35]}  Bxe4 {[%clk 0:02:59]} 10. Be3 {[%clk 0:02:35]}  d5 {[%clk 0:02:56]} 11. Rc1 {[%clk 0:02:32]}  e6 {[%clk 0:02:53]} 12. Qd2 {[%clk 0:02:32]}  Re8 {[%clk 0:02:53]} 13. Bh6 {[%clk 0:02:32]}  Bh8 {[%clk 0:02:53]} 14. Qc3 {[%clk 0:02:32]}  c5 {[%clk 0:02:46]} 15. Be3 {[%clk 0:02:25]}  Nc6 {[%clk 0:02:45]} 16. cxd5 {[%clk 0:01:24]}  Bxf3 {[%clk 0:02:31]} 17. Bxf3 {[%clk 0:00:55]}  cxd4 {[%clk 0:02:18]} 18. Qa3 {[%clk 0:00:55]}  Ne5 {[%clk 0:02:12]} 19. Bd2 {[%clk 0:00:48]}  Nxf3+ {[%clk 0:02:09]} 20. Qxf3 {[%clk 0:00:48]}  Qxd5 {[%clk 0:02:00]} 21. Qxd5 {[%clk 0:00:43]}  exd5 {[%clk 0:02:01]} 22. Rc7 {[%clk 0:00:44]}  b6 {[%clk 0:02:00]} 23. Kf1 {[%clk 0:00:43]}  Be5 {[%clk 0:01:48]} 24. Rb7 {[%clk 0:00:43]}  Reb8 {[%clk 0:01:21]} 25. Rd7 {[%clk 0:00:42]}  Rd8 {[%clk 0:01:21]} 26. Rb7 {[%clk 0:00:42]}  Rdc8 {[%clk 0:01:15]} 27. Rc1 {[%clk 0:00:36]}  Rxc1+ {[%clk 0:01:11]} 28. Bxc1 {[%clk 0:00:37]}  Kg7 {[%clk 0:01:07]} 29. Bd2 {[%clk 0:00:30]}  Rc8 {[%clk 0:01:05]} 30. Rxa7 {[%clk 0:00:19]}  Rc2 {[%clk 0:01:05]} 31. Bf4 {[%clk 0:00:17]}  Bxf4 {[%clk 0:00:59]} 32. gxf4 {[%clk 0:00:18]}  Rxb2 {[%clk 0:00:59]} 33. Rd7 {[%clk 0:00:18]}  Rb1+ {[%clk 0:00:27]} 34. Kg2 {[%clk 0:00:18]}  Rb5 {[%clk 0:00:28]} 35. Rd6 {[%clk 0:00:16]}  Kf8 {[%clk 0:00:26]} 36. a4 {[%clk 0:00:15]}  Rb4 {[%clk 0:00:22]} 37. Rxd5 {[%clk 0:00:14]}  Ke7 {[%clk 0:00:21]} 38. a5 {[%clk 0:00:13]}  b5 {[%clk 0:00:13]} 39. a6 {[%clk 0:00:12]}  Ke6 {[%clk 0:00:13]} 40. a7 {[%clk 0:00:11]}  Ra4 {[%clk 0:00:13]} 41. Rxb5 {[%clk 0:00:10]}  Rxa7 {[%clk 0:00:13]} 42. Kf3 {[%clk 0:00:10]}  Ra3+ {[%clk 0:00:10]} 43. Ke4 {[%clk 0:00:10]}  Ra2 {[%clk 0:00:11]} 44. Rb6+ {[%clk 0:00:11]}  Ke7 {[%clk 0:00:10]} 45. Kd3 {[%clk 0:00:11]}  Ra1 {[%clk 0:00:08]} 46. Kxd4 {[%clk 0:00:11]}  Rh1 {[%clk 0:00:09]} 47. Ke5 {[%clk 0:00:10]}  Rxh2 {[%clk 0:00:08]} 48. Rb7+ {[%clk 0:00:10]}  Ke8 {[%clk 0:00:08]} 49. e3 {[%clk 0:00:09]}  Rxf2 {[%clk 0:00:07]} 50. Kf6 {[%clk 0:00:10]}  Re2 {[%clk 0:00:05]} 51. Re7+ {[%clk 0:00:10]}  Kd8 {[%clk 0:00:05]} 52. Kxf7 {[%clk 0:00:10]}  h5 {[%clk 0:00:03]} 53. e4 {[%clk 0:00:11]}  h4 {[%clk 0:00:04]} 54. e5 {[%clk 0:00:10]}  h3 {[%clk 0:00:04]} 55. Re8+ {[%clk 0:00:11]}  Kd7 {[%clk 0:00:04]} 56. e6+ {[%clk 0:00:11]}  Kd6 {[%clk 0:00:03]} 57. Rd8+ {[%clk 0:00:11]}  Kc7 {[%clk 0:00:04]} 58. e7 {[%clk 0:00:12]}  h2 {[%clk 0:00:03]} 59. Rd1 {[%clk 0:00:12]}  Kc8 {[%clk 0:00:02]} 60. e8=Q+ {[%clk 0:00:12]}  Rxe8 {[%clk 0:00:02]} 61. Kxe8 {[%clk 0:00:13]} 1-0


[Site "https://www.chess.com"]

[Event "Titled Tuesday Blitz February 22 Late 2022"]
[White "Sjugirov, Sanan"]
[Black "Paravyan, David"]
[WhiteFideId "4189302"]
[BlackFideId "4194985"]
[WhiteElo "2602"]
[BlackElo "2569"]
[Result "1/2-1/2"]
[Round "08"]
[TimeControl "180+1"]
[Date "2022.02.22"]
[WhiteClock "0:00:06"]
[BlackClock "0:00:16"]

1. d4 {[%clk 0:03:00]}  Nf6 {[%clk 0:02:59]} 2. c4 {[%clk 0:03:00]}  g6 {[%clk 0:03:00]} 3. Nc3 {[%clk 0:02:59]}  d5 {[%clk 0:02:59]} 4. cxd5 {[%clk 0:02:59]}  Nxd5 {[%clk 0:03:00]} 5. e4 {[%clk 0:02:57]}  Nxc3 {[%clk 0:03:01]} 6. bxc3 {[%clk 0:02:58]}  Bg7 {[%clk 0:03:01]} 7. Nf3 {[%clk 0:02:52]}  c5 {[%clk 0:03:01]} 8. Be3 {[%clk 0:02:51]}  Bg4 {[%clk 0:03:02]} 9. Qd2 {[%clk 0:02:40]}  O-O {[%clk 0:03:01]} 10. Rc1 {[%clk 0:02:25]}  Bxf3 {[%clk 0:02:59]} 11. gxf3 {[%clk 0:02:24]}  e6 {[%clk 0:03:00]} 12. h4 {[%clk 0:02:05]}  cxd4 {[%clk 0:02:58]} 13. cxd4 {[%clk 0:02:05]}  Nc6 {[%clk 0:02:58]} 14. e5 {[%clk 0:02:02]}  Qd5 {[%clk 0:02:51]} 15. Be2 {[%clk 0:01:55]}  Rfd8 {[%clk 0:02:49]} 16. Rd1 {[%clk 0:01:50]}  h5 {[%clk 0:02:44]} 17. O-O {[%clk 0:01:45]}  Rac8 {[%clk 0:02:44]} 18. Kg2 {[%clk 0:01:26]}  Na5 {[%clk 0:02:43]} 19. Bd3 {[%clk 0:01:23]}  b6 {[%clk 0:02:23]} 20. Be4 {[%clk 0:01:20]}  Qb5 {[%clk 0:02:21]} 21. Bd3 {[%clk 0:01:12]}  Qa4 {[%clk 0:02:20]} 22. Qe2 {[%clk 0:01:11]}  Nc4 {[%clk 0:02:13]} 23. Be4 {[%clk 0:00:56]}  Nxe3+ {[%clk 0:02:00]} 24. fxe3 {[%clk 0:00:54]}  Rc3 {[%clk 0:02:01]} 25. f4 {[%clk 0:00:48]}  b5 {[%clk 0:01:54]} 26. Rd2 {[%clk 0:00:45]}  b4 {[%clk 0:01:35]} 27. Bf3 {[%clk 0:00:42]}  Qa3 {[%clk 0:01:28]} 28. Re1 {[%clk 0:00:40]}  Bf8 {[%clk 0:01:19]} 29. d5 {[%clk 0:00:38]}  exd5 {[%clk 0:00:51]} 30. Bxd5 {[%clk 0:00:39]}  Qa5 {[%clk 0:00:50]} 31. Red1 {[%clk 0:00:37]}  Kg7 {[%clk 0:00:39]} 32. Bb3 {[%clk 0:00:34]}  Rxd2 {[%clk 0:00:37]} 33. Rxd2 {[%clk 0:00:35]}  Qb6 {[%clk 0:00:30]} 34. Qf3 {[%clk 0:00:20]}  Qc7 {[%clk 0:00:13]} 35. e6 {[%clk 0:00:11]}  fxe6 {[%clk 0:00:13]} 36. Bxe6 {[%clk 0:00:11]}  Rc2 {[%clk 0:00:13]} 37. Rxc2 {[%clk 0:00:09]}  Qxc2+ {[%clk 0:00:14]} 38. Kh3 {[%clk 0:00:10]}  Qc5 {[%clk 0:00:14]} 39. Qe4 {[%clk 0:00:08]}  a5 {[%clk 0:00:13]} 40. Kg3 {[%clk 0:00:08]}  Be7 {[%clk 0:00:12]} 41. Bd5 {[%clk 0:00:07]}  Bf6 {[%clk 0:00:12]} 42. Qe6 {[%clk 0:00:07]}  Qe7 {[%clk 0:00:12]} 43. Qxe7+ {[%clk 0:00:04]}  Bxe7 {[%clk 0:00:13]} 44. Bc6 {[%clk 0:00:04]}  Kf6 {[%clk 0:00:13]} 45. e4 {[%clk 0:00:04]}  Bc5 {[%clk 0:00:11]} 46. e5+ {[%clk 0:00:05]}  Kf7 {[%clk 0:00:11]} 47. Bd5+ {[%clk 0:00:05]}  Kg7 {[%clk 0:00:11]} 48. Bb3 {[%clk 0:00:05]}  Bd4 {[%clk 0:00:12]} 49. Bc2 {[%clk 0:00:05]}  Bc3 {[%clk 0:00:12]} 50. Kh3 {[%clk 0:00:04]}  Be1 {[%clk 0:00:12]} 51. Bb3 {[%clk 0:00:04]}  Bd2 {[%clk 0:00:12]} 52. Kg3 {[%clk 0:00:04]}  Be1+ {[%clk 0:00:12]} 53. Kh3 {[%clk 0:00:05]}  Kf8 {[%clk 0:00:13]} 54. Bc2 {[%clk 0:00:04]}  Kf7 {[%clk 0:00:13]} 55. Bb3+ {[%clk 0:00:05]}  Kg7 {[%clk 0:00:14]} 56. Bc2 {[%clk 0:00:05]}  Bf2 {[%clk 0:00:15]} 57. Bb3 {[%clk 0:00:05]}  Bd4 {[%clk 0:00:15]} 58. Bc2 {[%clk 0:00:05]}  Bc3 {[%clk 0:00:15]} 59. Bb3 {[%clk 0:00:05]}  Bd2 {[%clk 0:00:16]} 60. Kg3 {[%clk 0:00:05]}  Be1+ {[%clk 0:00:16]} 61. Kh3 {[%clk 0:00:06]} 1/2-1/2


[Site "https://www.chess.com"]

[Event "Titled Tuesday Blitz February 22 Late 2022"]
[White "Tan, Jun Ying"]
[Black "Rustemov, Alexander"]
[WhiteFideId "5710413"]
[BlackFideId "4119002"]
[WhiteElo "1827"]
[BlackElo "2689"]
[Result "0-1"]
[Round "08"]
[TimeControl "180+1"]
[Date "2022.02.23"]
[WhiteClock "0:00:05"]
[BlackClock "0:00:12"]

1. d4 {[%clk 0:03:00]}  g6 {[%clk 0:02:58]} 2. c4 {[%clk 0:02:59]}  Bg7 {[%clk 0:02:57]} 3. e4 {[%clk 0:03:00]}  d6 {[%clk 0:02:57]} 4. Nc3 {[%clk 0:03:00]}  Nc6 {[%clk 0:02:54]} 5. Be3 {[%clk 0:02:57]}  e5 {[%clk 0:02:47]} 6. Nge2 {[%clk 0:02:58]}  Nh6 {[%clk 0:02:45]} 7. f3 {[%clk 0:02:51]}  f5 {[%clk 0:02:44]} 8. d5 {[%clk 0:02:41]}  Ne7 {[%clk 0:02:43]} 9. Qd2 {[%clk 0:02:41]}  Nf7 {[%clk 0:02:40]} 10. O-O-O {[%clk 0:02:39]}  O-O {[%clk 0:02:40]} 11. Kb1 {[%clk 0:02:32]}  a6 {[%clk 0:02:38]} 12. Nc1 {[%clk 0:02:28]}  Bd7 {[%clk 0:02:35]} 13. c5 {[%clk 0:02:25]}  dxc5 {[%clk 0:02:26]} 14. Bxc5 {[%clk 0:02:24]}  Nd6 {[%clk 0:02:26]} 15. Nb3 {[%clk 0:02:17]}  Qe8 {[%clk 0:02:17]} 16. Bd3 {[%clk 0:02:09]}  Qf7 {[%clk 0:02:16]} 17. Rc1 {[%clk 0:02:00]}  b6 {[%clk 0:02:06]} 18. Be3 {[%clk 0:01:44]}  Rfc8 {[%clk 0:01:59]} 19. Rc2 {[%clk 0:01:42]}  h5 {[%clk 0:01:37]} 20. Rhc1 {[%clk 0:01:40]}  Kh7 {[%clk 0:01:37]} 21. Ne2 {[%clk 0:01:37]}  Ne8 {[%clk 0:01:36]} 22. d6 {[%clk 0:01:17]}  cxd6 {[%clk 0:01:33]} 23. Bc4 {[%clk 0:00:58]}  Be6 {[%clk 0:01:30]} 24. Bxe6 {[%clk 0:00:57]}  Qxe6 {[%clk 0:01:31]} 25. Bxb6 {[%clk 0:00:57]}  Rxc2 {[%clk 0:01:21]} 26. Rxc2 {[%clk 0:00:56]}  d5 {[%clk 0:01:22]} 27. Bc5 {[%clk 0:00:52]}  dxe4 {[%clk 0:01:12]} 28. Bxe7 {[%clk 0:00:50]}  exf3 {[%clk 0:01:05]} 29. gxf3 {[%clk 0:00:37]}  Qxe7 {[%clk 0:01:05]} 30. Nc3 {[%clk 0:00:30]}  Nf6 {[%clk 0:01:03]} 31. Nd5 {[%clk 0:00:28]}  Nxd5 {[%clk 0:01:00]} 32. Qxd5 {[%clk 0:00:29]}  Rd8 {[%clk 0:01:00]} 33. Qc4 {[%clk 0:00:28]}  Rd1+ {[%clk 0:00:53]} 34. Rc1 {[%clk 0:00:27]}  Rxc1+ {[%clk 0:00:45]} 35. Nxc1 {[%clk 0:00:28]}  Qd6 {[%clk 0:00:42]} 36. a3 {[%clk 0:00:27]}  Qb6 {[%clk 0:00:33]} 37. b4 {[%clk 0:00:23]}  e4 {[%clk 0:00:32]} 38. fxe4 {[%clk 0:00:22]}  Qf6 {[%clk 0:00:31]} 39. Kc2 {[%clk 0:00:20]}  Qb2+ {[%clk 0:00:29]} 40. Kd1 {[%clk 0:00:21]}  Qxa3 {[%clk 0:00:28]} 41. exf5 {[%clk 0:00:21]}  Qf3+ {[%clk 0:00:28]} 42. Ne2 {[%clk 0:00:20]}  gxf5 {[%clk 0:00:25]} 43. Qxa6 {[%clk 0:00:18]}  Qb3+ {[%clk 0:00:24]} 44. Ke1 {[%clk 0:00:17]}  Qxb4+ {[%clk 0:00:25]} 45. Kf1 {[%clk 0:00:17]}  Qg4 {[%clk 0:00:24]} 46. Qd3 {[%clk 0:00:16]}  h4 {[%clk 0:00:18]} 47. h3 {[%clk 0:00:14]}  Qe4 {[%clk 0:00:16]} 48. Qxe4 {[%clk 0:00:14]}  fxe4 {[%clk 0:00:17]} 49. Kf2 {[%clk 0:00:13]}  Kg6 {[%clk 0:00:17]} 50. Ke3 {[%clk 0:00:10]}  Kf5 {[%clk 0:00:17]} 51. Nc1 {[%clk 0:00:09]}  Bf8 {[%clk 0:00:16]} 52. Nb3 {[%clk 0:00:08]}  Ke5 {[%clk 0:00:15]} 53. Kf2 {[%clk 0:00:04]}  Kf4 {[%clk 0:00:14]} 54. Nd4 {[%clk 0:00:03]}  Bc5 {[%clk 0:00:14]} 55. Kg2 {[%clk 0:00:02]}  Bxd4 {[%clk 0:00:14]} 56. Kh2 {[%clk 0:00:03]}  e3 {[%clk 0:00:12]} 57. Kg2 {[%clk 0:00:04]}  e2 {[%clk 0:00:12]} 58. Kh2 {[%clk 0:00:04]}  e1=Q {[%clk 0:00:12]} 59. Kg2 {[%clk 0:00:05]}  Qg1# {[%clk 0:00:12]} 0-1


[Site "https://www.chess.com"]

[Event "Titled Tuesday Blitz February 22 Late 2022"]
[White "Tanenbaum, Zachary"]
[Black "Baskin, Robert"]
[WhiteFideId "2060850"]
[BlackFideId "24662402"]
[WhiteElo "2698"]
[BlackElo "2555"]
[Result "0-1"]
[Round "08"]
[TimeControl "180+1"]
[Date "2022.02.23"]
[WhiteClock "0:00:08"]
[BlackClock "0:00:08"]

1. e4 {[%clk 0:02:36]}  d6 {[%clk 0:02:58]} 2. d4 {[%clk 0:02:36]}  Nf6 {[%clk 0:02:56]} 3. Nc3 {[%clk 0:02:37]}  g6 {[%clk 0:02:52]} 4. Bg5 {[%clk 0:02:36]}  c6 {[%clk 0:02:51]} 5. Qd2 {[%clk 0:02:36]}  Nbd7 {[%clk 0:02:48]} 6. O-O-O {[%clk 0:02:36]}  b5 {[%clk 0:02:46]} 7. e5 {[%clk 0:02:36]}  b4 {[%clk 0:02:36]} 8. exf6 {[%clk 0:02:35]}  bxc3 {[%clk 0:02:36]} 9. Qxc3 {[%clk 0:02:32]}  Nxf6 {[%clk 0:02:25]} 10. Bxf6 {[%clk 0:02:23]}  exf6 {[%clk 0:02:25]} 11. Qxc6+ {[%clk 0:02:19]}  Bd7 {[%clk 0:02:24]} 12. Re1+ {[%clk 0:02:19]}  Be7 {[%clk 0:02:24]} 13. Qxd6 {[%clk 0:02:18]}  Kf8 {[%clk 0:02:24]} 14. Qd5 {[%clk 0:02:01]}  Kg7 {[%clk 0:02:20]} 15. Bc4 {[%clk 0:01:41]}  Rf8 {[%clk 0:02:20]} 16. h4 {[%clk 0:01:39]}  h5 {[%clk 0:02:19]} 17. Nh3 {[%clk 0:01:29]}  Rb8 {[%clk 0:02:09]} 18. Nf4 {[%clk 0:01:23]}  Bb4 {[%clk 0:01:37]} 19. Re3 {[%clk 0:01:15]}  Bf5 {[%clk 0:01:19]} 20. Nxh5+ {[%clk 0:01:12]}  Kh6 {[%clk 0:01:04]} 21. Ng3 {[%clk 0:00:50]}  Bg4 {[%clk 0:00:46]} 22. Qxd8 {[%clk 0:00:43]}  Rfxd8 {[%clk 0:00:46]} 23. Bxf7 {[%clk 0:00:41]}  Bd6 {[%clk 0:00:32]} 24. c3 {[%clk 0:00:38]}  Bf4 {[%clk 0:00:32]} 25. h5 {[%clk 0:00:36]}  g5 {[%clk 0:00:29]} 26. Ne4 {[%clk 0:00:28]}  Bf5 {[%clk 0:00:27]} 27. Nc5 {[%clk 0:00:20]}  g4 {[%clk 0:00:17]} 28. Kd2 {[%clk 0:00:18]}  Rxb2+ {[%clk 0:00:16]} 29. Ke1 {[%clk 0:00:17]}  Bxe3 {[%clk 0:00:14]} 30. fxe3 {[%clk 0:00:18]}  Rb1+ {[%clk 0:00:14]} 31. Kf2 {[%clk 0:00:18]}  Rxh1 {[%clk 0:00:15]} 32. Kg3 {[%clk 0:00:18]}  Rxh5 {[%clk 0:00:13]} 33. Bxh5 {[%clk 0:00:18]}  Kxh5 {[%clk 0:00:14]} 34. e4 {[%clk 0:00:18]}  Bc8 {[%clk 0:00:15]} 35. Kf4 {[%clk 0:00:18]}  Rh8 {[%clk 0:00:10]} 36. g3 {[%clk 0:00:18]}  Kg6 {[%clk 0:00:10]} 37. d5 {[%clk 0:00:18]}  Rh2 {[%clk 0:00:10]} 38. Ke3 {[%clk 0:00:17]}  Rg2 {[%clk 0:00:10]} 39. e5 {[%clk 0:00:11]}  Rxg3+ {[%clk 0:00:09]} 40. Kf4 {[%clk 0:00:09]}  Rf3+ {[%clk 0:00:08]} 41. Ke4 {[%clk 0:00:10]}  Bf5+ {[%clk 0:00:08]} 42. Kd4 {[%clk 0:00:10]}  fxe5+ {[%clk 0:00:09]} 43. Kxe5 {[%clk 0:00:10]}  g3 {[%clk 0:00:10]} 44. Kd6 {[%clk 0:00:06]}  g2 {[%clk 0:00:10]} 45. Nd7 {[%clk 0:00:06]}  Bxd7 {[%clk 0:00:09]} 46. Kxd7 {[%clk 0:00:06]}  g1=Q {[%clk 0:00:09]} 47. c4 {[%clk 0:00:07]}  Qc5 {[%clk 0:00:09]} 48. Ke6 {[%clk 0:00:07]}  Re3+ {[%clk 0:00:09]} 49. Kd7 {[%clk 0:00:07]}  Re7+ {[%clk 0:00:08]} 50. Kd8 {[%clk 0:00:08]}  Qc7# {[%clk 0:00:08]} 0-1


[Site "https://www.chess.com"]

[Event "Titled Tuesday Blitz February 22 Late 2022"]
[White "Timofeev, Artyom"]
[Black "Barp, Alberto"]
[WhiteFideId "4140419"]
[BlackFideId "872555"]
[WhiteElo "2583"]
[BlackElo "2229"]
[Result "0-1"]
[Round "08"]
[TimeControl "180+1"]
[Date "2022.02.22"]
[WhiteClock "0:00:08"]
[BlackClock "0:00:09"]

1. d4 {[%clk 0:03:00]}  Nf6 {[%clk 0:02:59]} 2. c4 {[%clk 0:03:00]}  e6 {[%clk 0:02:58]} 3. Nc3 {[%clk 0:03:00]}  Bb4 {[%clk 0:02:52]} 4. e3 {[%clk 0:03:00]}  d5 {[%clk 0:02:50]} 5. Nf3 {[%clk 0:02:59]}  c5 {[%clk 0:02:46]} 6. cxd5 {[%clk 0:02:57]}  exd5 {[%clk 0:02:45]} 7. dxc5 {[%clk 0:02:48]}  O-O {[%clk 0:02:41]} 8. Be2 {[%clk 0:02:47]}  Bxc5 {[%clk 0:02:37]} 9. O-O {[%clk 0:02:46]}  Nc6 {[%clk 0:02:37]} 10. b3 {[%clk 0:02:47]}  Be6 {[%clk 0:02:35]} 11. Bb2 {[%clk 0:02:46]}  Qe7 {[%clk 0:02:35]} 12. Nb5 {[%clk 0:02:38]}  Rac8 {[%clk 0:02:30]} 13. Rc1 {[%clk 0:02:38]}  Ne4 {[%clk 0:02:27]} 14. Nbd4 {[%clk 0:02:10]}  Rfd8 {[%clk 0:02:20]} 15. h3 {[%clk 0:02:04]}  Bd6 {[%clk 0:02:17]} 16. Nxc6 {[%clk 0:01:58]}  bxc6 {[%clk 0:02:15]} 17. Ba6 {[%clk 0:01:55]}  Rc7 {[%clk 0:02:14]} 18. Qd4 {[%clk 0:01:52]}  f6 {[%clk 0:02:11]} 19. Rfd1 {[%clk 0:01:49]}  Bf7 {[%clk 0:02:07]} 20. Be2 {[%clk 0:01:42]}  Rcc8 {[%clk 0:01:55]} 21. Qa4 {[%clk 0:01:40]}  Bb8 {[%clk 0:01:50]} 22. Ba6 {[%clk 0:01:16]}  Rc7 {[%clk 0:01:46]} 23. Ba3 {[%clk 0:01:12]}  Qe8 {[%clk 0:01:34]} 24. Nd2 {[%clk 0:01:08]}  Bh5 {[%clk 0:01:10]} 25. Nxe4 {[%clk 0:01:06]}  Bxd1 {[%clk 0:01:10]} 26. Nd6 {[%clk 0:01:05]}  Qe6 {[%clk 0:01:06]} 27. Rxd1 {[%clk 0:01:01]}  Rxd6 {[%clk 0:01:04]} 28. Bxd6 {[%clk 0:01:01]}  Qxd6 {[%clk 0:01:04]} 29. g3 {[%clk 0:01:01]}  Re7 {[%clk 0:01:02]} 30. Kf1 {[%clk 0:00:44]}  Qe6 {[%clk 0:00:56]} 31. Kg2 {[%clk 0:00:42]}  Qd6 {[%clk 0:00:51]} 32. Qd4 {[%clk 0:00:33]}  Qc7 {[%clk 0:00:34]} 33. Bd3 {[%clk 0:00:30]}  Qd6 {[%clk 0:00:29]} 34. b4 {[%clk 0:00:29]}  Qe5 {[%clk 0:00:24]} 35. Qh4 {[%clk 0:00:23]}  g6 {[%clk 0:00:22]} 36. Rc1 {[%clk 0:00:20]}  Re6 {[%clk 0:00:21]} 37. Be2 {[%clk 0:00:19]}  Qd6 {[%clk 0:00:18]} 38. Bf3 {[%clk 0:00:18]}  Bc7 {[%clk 0:00:17]} 39. b5 {[%clk 0:00:14]}  cxb5 {[%clk 0:00:15]} 40. Qd4 {[%clk 0:00:13]}  Bb6 {[%clk 0:00:12]} 41. Qxd5 {[%clk 0:00:12]}  Kg7 {[%clk 0:00:12]} 42. Qxb5 {[%clk 0:00:10]}  Qd2 {[%clk 0:00:10]} 43. Rd1 {[%clk 0:00:08]}  Qxa2 {[%clk 0:00:09]} 44. Bd5 {[%clk 0:00:08]}  Qc2 {[%clk 0:00:07]} 45. Bxe6 {[%clk 0:00:07]}  Qxd1 {[%clk 0:00:07]} 46. Qe8 {[%clk 0:00:08]}  Qd6 {[%clk 0:00:07]} 47. Qf7+ {[%clk 0:00:07]}  Kh6 {[%clk 0:00:07]} 48. Qxf6 {[%clk 0:00:08]}  Qd8 {[%clk 0:00:04]} 49. Qf4+ {[%clk 0:00:06]}  Kg7 {[%clk 0:00:05]} 50. Qe5+ {[%clk 0:00:06]}  Qf6 {[%clk 0:00:06]} 51. Qxf6+ {[%clk 0:00:07]}  Kxf6 {[%clk 0:00:07]} 52. Bb3 {[%clk 0:00:07]}  g5 {[%clk 0:00:08]} 53. g4 {[%clk 0:00:07]}  h6 {[%clk 0:00:08]} 54. Kf3 {[%clk 0:00:07]}  Ke5 {[%clk 0:00:09]} 55. Ke2 {[%clk 0:00:08]}  Bc5 {[%clk 0:00:09]} 56. Kd3 {[%clk 0:00:08]}  Bb4 {[%clk 0:00:09]} 57. Bc4 {[%clk 0:00:06]}  Be1 {[%clk 0:00:09]} 58. Ke2 {[%clk 0:00:07]}  Bb4 {[%clk 0:00:09]} 59. Bb3 {[%clk 0:00:07]}  Bc3 {[%clk 0:00:09]} 60. Kf3 {[%clk 0:00:07]}  Be1 {[%clk 0:00:09]} 61. Kg2 {[%clk 0:00:07]}  a5 {[%clk 0:00:08]} 62. Bc2 {[%clk 0:00:07]}  Bc3 {[%clk 0:00:08]} 63. h4 {[%clk 0:00:07]}  Be1 {[%clk 0:00:06]} 64. h5 {[%clk 0:00:06]}  Bb4 {[%clk 0:00:06]} 65. Kf3 {[%clk 0:00:07]}  Be1 {[%clk 0:00:06]} 66. Ke2 {[%clk 0:00:07]}  Bb4 {[%clk 0:00:06]} 67. Kd3 {[%clk 0:00:08]}  Be1 {[%clk 0:00:06]} 68. f3 {[%clk 0:00:08]}  Bb4 {[%clk 0:00:05]} 69. Kc4 {[%clk 0:00:08]}  Bd2 {[%clk 0:00:05]} 70. e4 {[%clk 0:00:08]}  Bc1 {[%clk 0:00:02]} 71. Kc5 {[%clk 0:00:08]}  Ba3+ {[%clk 0:00:02]} 72. Kc6 {[%clk 0:00:08]}  Bb2 {[%clk 0:00:01]} 73. Kd7 {[%clk 0:00:08]}  Kd4 {[%clk 0:00:01]} 74. Ke7 {[%clk 0:00:07]}  Ke3 {[%clk 0:00:01]} 75. Kf7 {[%clk 0:00:07]}  Kxf3 {[%clk 0:00:02]} 76. Kg6 {[%clk 0:00:05]}  Kxg4 {[%clk 0:00:02]} 77. Kxh6 {[%clk 0:00:05]}  Kf4 {[%clk 0:00:02]} 78. Kg6 {[%clk 0:00:06]}  g4 {[%clk 0:00:03]} 79. e5 {[%clk 0:00:03]}  g3 {[%clk 0:00:03]} 80. Be4 {[%clk 0:00:03]}  Kxe4 {[%clk 0:00:03]} 81. e6 {[%clk 0:00:03]}  g2 {[%clk 0:00:04]} 82. e7 {[%clk 0:00:04]}  g1=Q+ {[%clk 0:00:05]} 83. Kf7 {[%clk 0:00:04]}  Qf1+ {[%clk 0:00:04]} 84. Ke8 {[%clk 0:00:05]}  Qb5+ {[%clk 0:00:04]} 85. Kf7 {[%clk 0:00:05]}  Qxh5+ {[%clk 0:00:05]} 86. Kf8 {[%clk 0:00:05]}  a4 {[%clk 0:00:06]} 87. e8=Q+ {[%clk 0:00:05]}  Qxe8+ {[%clk 0:00:06]} 88. Kxe8 {[%clk 0:00:06]}  a3 {[%clk 0:00:07]} 89. Kd7 {[%clk 0:00:07]}  a2 {[%clk 0:00:08]} 90. Kc6 {[%clk 0:00:08]}  a1=Q {[%clk 0:00:09]} 91. Kb5 {[%clk 0:00:08]}  Qa3 {[%clk 0:00:10]} 92. Kc4 {[%clk 0:00:08]}  Qd3+ {[%clk 0:00:10]} 93. Kb4 {[%clk 0:00:08]}  Bd4 {[%clk 0:00:10]} 94. Ka4 {[%clk 0:00:08]}  Qb1 {[%clk 0:00:10]} 95. Ka5 {[%clk 0:00:08]}  Kd5 {[%clk 0:00:10]} 96. Ka6 {[%clk 0:00:08]}  Kc6 {[%clk 0:00:10]} 97. Ka5 {[%clk 0:00:08]}  Qb5# {[%clk 0:00:09]} 0-1


[Site "https://www.chess.com"]